fUST/lending_fUST_20250707
["ID","MTS","AMOUNT","RATE_DAILY","PERIOD"]
[370073392,1751874690807,-460.0,0.00018452,2]
[370073393,1751874690817,-460.0,0.00018452,2]
[370073394,1751874690827,-460.0,0.00018452,2]
[370073395,1751874690837,-484.93,0.00018452,2]
[370073396,1751874690846,-460.0,0.00018452,2]
[370073397,1751874690857,-460.0,0.00018452,2]
[370073398,1751874690867,-661.69,0.00018452,2]
[370073399,1751874690876,-460.0,0.00018452,2]
[370073400,1751874690885,-460.0,0.00018452,2]
[370073401,1751874690895,-460.0,0.00018452,2]
[370073402,1751874690906,-460.0,0.00018452,2]
[370073403,1751874690915,-460.0,0.00018452,2]
[370073404,1751874690926,-460.0,0.00018452,2]
[370073405,1751874690936,-460.0,0.00018452,2]
[370073406,1751874690946,-460.0,0.00018452,2]
[370073407,1751874690955,-460.0,0.00018452,2]
[370073408,1751874690966,-460.0,0.00018452,2]
[370073409,1751874690975,-3246.94,0.00018452,2]
[370073410,1751874690985,-503.41,0.00018452,2]
[370073411,1751874690994,-688.12735,0.00018452,2]
[370073412,1751874691004,-499.04,0.00018452,2]
[370073413,1751874691014,-460.0,0.00018452,2]
[370073414,1751874691023,-460.0,0.00018452,2]
[370073415,1751874691033,-688.12735,0.00018452,2]
[370073416,1751874691042,-460.0,0.00018452,2]
[370073417,1751874691052,-460.0,0.00018452,2]
[370073418,1751874691062,-2096.65,0.00018452,2]
[370073419,1751874691200,-670.12472,0.00018452,2]
[370073420,1751874691213,-460.0,0.00018452,2]
[370073421,1751874691223,-670.12472,0.00018452,2]
[370073422,1751874691233,-460.0,0.00018452,2]
[370073423,1751874691244,-460.0,0.00018452,2]
[370073424,1751874691256,-503.05,0.00018452,2]
[370073425,1751874691267,-460.0,0.00018452,2]
[370073426,1751874691277,-333.55582648,0.00018452,2]
[370073427,1751874691289,-2875.21,0.00018452,2]
[370073428,1751874691299,-733.470814,0.00018453,2]
[370073429,1751874691309,-733.470814,0.00018453,2]
[370073430,1751874691319,-151.0,0.00018453,2]
[370073431,1751874691328,-151.0,0.00018453,2]
[370073432,1751874691339,-460.0,0.00018454,2]
[370073433,1751874691349,-460.0,0.00018454,2]
[370073434,1751874691359,-254.60910511,0.00018454,2]
[370073435,1751874691369,-460.0,0.00018454,2]
[370073436,1751874691379,-460.0,0.00018454,2]
[370073437,1751874691388,-460.0,0.00018454,2]
[370073438,1751874691398,-151.0,0.00018454,2]
[370073439,1751874691408,-151.0,0.00018454,2]
[370073440,1751874691419,-460.0,0.00018454,2]
[370073441,1751874691429,-275.356749,0.00018454,2]
[370073442,1751874691439,-151.0,0.00018454,2]
[370073443,1751874691448,-460.0,0.00018454,2]
[370073444,1751874691458,-460.0,0.00018454,2]
[370073445,1751874691467,-460.0,0.00018454,2]
[370073446,1751874691477,-460.0,0.00018454,2]
[370073447,1751874691486,-220.871132,0.00018454,2]
[370073448,1751874691495,-220.871132,0.00018454,2]
[370073449,1751874691505,-460.0,0.00018454,2]
[370073450,1751874691515,-460.0,0.00018454,2]
[370073451,1751874691524,-1143.07,0.00018454,2]
[370073452,1751874691532,-460.0,0.00018454,2]
[370073453,1751874691542,-460.0,0.00018454,2]
[370073454,1751874691551,-460.0,0.00018454,2]
[370073455,1751874691561,-460.0,0.00018454,2]
[370073456,1751874691571,-460.0,0.00018454,2]
[370073457,1751874691580,-460.0,0.00018454,2]
[370073458,1751874691589,-460.0,0.00018454,2]
[370073459,1751874691599,-151.0,0.00018454,2]
[370073460,1751874691608,-151.0,0.00018454,2]
[370073461,1751874691618,-460.0,0.00018454,2]
[370073462,1751874691628,-460.0,0.00018454,2]
[370073463,1751874691638,-460.0,0.00018454,2]
[370073464,1751874691647,-460.0,0.00018454,2]
[370073465,1751874691657,-460.0,0.00018454,2]
[370073466,1751874691666,-460.0,0.00018454,2]
[370073467,1751874691675,-460.0,0.00018454,2]
[370073468,1751874691684,-904.25,0.00018454,2]
[370073469,1751874691694,-460.0,0.00018454,2]
[370073470,1751874691704,-460.0,0.00018454,2]
[370073471,1751874691714,-460.0,0.00018454,2]
[370073472,1751874691723,-158.529141,0.00018454,2]
[370073473,1751874691733,-460.0,0.00018454,2]
[370073474,1751874691742,-460.0,0.00018454,2]
[370073475,1751874691751,-158.529141,0.00018454,2]
[370073476,1751874691761,-151.0,0.00018454,2]
[370073477,1751874691770,-151.0,0.00018454,2]
[370073478,1751874691779,-1008.607187,0.00018454,2]
[370073479,1751874691789,-1008.607187,0.00018454,2]
[370073480,1751874691799,-460.0,0.00018454,2]
[370073481,1751874691809,-460.0,0.00018454,2]
[370073482,1751874691818,-151.0,0.00018454,2]
[370073483,1751874691828,-460.0,0.00018454,2]
[370073484,1751874691837,-460.0,0.00018454,2]
[370073485,1751874691847,-361.372323,0.00018454,2]
[370073486,1751874691856,-361.372323,0.00018454,2]
[370073487,1751874691866,-460.0,0.00018454,2]
[370073488,1751874691875,-460.0,0.00018454,2]
[370073489,1751874691885,-151.0,0.00018455,2]
[370073490,1751874691895,-460.0,0.00018455,2]
[370073491,1751874691904,-460.0,0.00018455,2]
[370073492,1751874691913,-460.0,0.00018455,2]
[370073493,1751874691923,-460.0,0.00018455,2]
[370073494,1751874691932,-460.0,0.00018455,2]
[370073495,1751874691941,-471.71,0.00018455,2]
[370073496,1751874691951,-460.0,0.00018455,2]
[370073497,1751874691960,-460.0,0.00018455,2]
[370073498,1751874691969,-460.0,0.00018455,2]
[370073499,1751874691979,-151.0,0.00018455,2]
[370073500,1751874691988,-151.0,0.00018455,2]
[370073501,1751874691998,-460.0,0.00018455,2]
[370073502,1751874692007,-460.0,0.00018455,2]
[370073503,1751874692017,-460.0,0.00018455,2]
[370073504,1751874692026,-151.0,0.00018455,2]
[370073505,1751874692036,-460.0,0.00018455,2]
[370073506,1751874692045,-151.0,0.00018455,2]
[370073507,1751874692054,-460.0,0.00018455,2]
[370073508,1751874692064,-400.0,0.00018463,2]
[370073509,1751874692074,-1500.0,0.00018468,2]
[370073510,1751874692084,-1500.0,0.00018468,2]
[370073511,1751874692093,-501.85873323,0.00018468,2]
[370073512,1751874692102,-533.38908009,0.00018468,2]
[370073513,1751874692112,-1000.0,0.00018521,2]
[370073514,1751874692122,-1000.0,0.00018521,2]
[370073515,1751874692131,-999.91104797,0.00018521,2]
[370073516,1751874692140,-1200.0,0.00018521,2]
[370073517,1751874692150,-1000.0,0.00018521,2]
[370073518,1751874692159,-1001.0754988,0.00018521,2]
[370073519,1751874692169,-500.0,0.00018521,2]
[370073520,1751874692180,-1000.0,0.00018521,2]
[370073521,1751874692191,-500.0,0.00018521,2]
[370073522,1751874692202,-1000.0,0.00018521,2]
[370073523,1751874692214,-435.63341898,0.00018521,2]
[370073524,1751874692225,-1000.0,0.00018521,2]
[370073525,1751874692237,-1000.0,0.00018521,2]
[370073526,1751874692248,-771.8660787,0.00018521,2]
[370073527,1751874692259,-1000.0,0.00018521,2]
[370073528,1751874692268,-722.04728116,0.00018521,2]
[370073529,1751874692278,-1000.0,0.00018521,2]
[370073530,1751874692287,-1000.0,0.00018521,2]
[370073531,1751874692297,-1000.0,0.00018521,2]
[370073532,1751874692307,-1000.0,0.00018521,2]
[370073533,1751874692318,-1049.35078687,0.00018521,2]
[370073534,1751874692328,-334.476543,0.00018521,2]
[370073535,1751874692339,-500.4184724,0.00018521,2]
[370073536,1751874692351,-1000.0,0.00018521,2]
[370073537,1751874692362,-400.0,0.00018546,2]
[370073538,1751874692372,-400.0,0.0001863,2]
[370073539,1751874692383,-400.0,0.00018713,2]
[370073540,1751874692393,-2000.0,0.00018716,2]
[370073541,1751874692404,-2000.0,0.00018716,2]
[370073542,1751874692415,-460.0,0.00018721,2]
[370073543,1751874692425,-460.0,0.00018721,2]
[370073544,1751874692436,-460.0,0.00018721,2]
[370073545,1751874692447,-460.0,0.00018721,2]
[370073546,1751874692459,-460.0,0.00018721,2]
[370073547,1751874692469,-460.0,0.00018721,2]
[370073548,1751874692480,-516.51,0.00018721,2]
[370073549,1751874692490,-502.13,0.00018721,2]
[370073550,1751874692499,-460.0,0.00018721,2]
[370073551,1751874692509,-460.0,0.00018721,2]
[370073552,1751874692519,-460.0,0.00018721,2]
[370073553,1751874692528,-5847.9,0.00018721,2]
[370073554,1751874692538,-460.0,0.00018721,2]
[370073555,1751874692548,-460.0,0.00018721,2]
[370073556,1751874692558,-460.0,0.00018722,2]
[370073557,1751874692567,-559.2648698,0.00018722,2]
[370073558,1751874692576,-460.0,0.00018722,2]
[370073559,1751874692586,-460.0,0.00018722,2]
[370073560,1751874692595,-460.0,0.00018722,2]
[370073561,1751874692604,-460.0,0.00018722,2]
[370073562,1751874692613,-460.0,0.00018722,2]
[370073563,1751874692623,-460.0,0.00018722,2]
[370073564,1751874692633,-460.0,0.00018722,2]
[370073565,1751874692642,-460.0,0.00018722,2]
[370073566,1751874692653,-462.21,0.00018722,2]
[370073567,1751874692663,-460.0,0.00018722,2]
[370073568,1751874692673,-3915.6,0.00018722,2]
[370073569,1751874692683,-460.0,0.00018722,2]
[370073570,1751874692692,-598.2,0.00018722,2]
[370073571,1751874692702,-460.0,0.00018722,2]
[370073572,1751874692712,-2220.21,0.00018722,2]
[370073573,1751874692721,-460.0,0.00018722,2]
[370073574,1751874692733,-460.0,0.00018722,2]
[370073575,1751874692742,-596.4,0.00018722,2]
[370073576,1751874692752,-791.73,0.00018722,2]
[370073577,1751874692761,-460.0,0.00018722,2]
[370073578,1751874692770,-463.17023637,0.00018722,2]
[370073579,1751874692780,-460.0,0.00018722,2]
[370073580,1751874692790,-460.0,0.00018722,2]
[370073581,1751874692800,-465.64309169,0.00018722,2]
[370073582,1751874692809,-500.96,0.00018722,2]
[370073583,1751874692819,-460.0,0.00018722,2]
[370073584,1751874692829,-908.31,0.00018722,2]
[370073585,1751874692838,-460.0,0.00018722,2]
[370073586,1751874692848,-3498.14,0.00018722,2]
[370073587,1751874692858,-460.0,0.00018722,2]
[370073588,1751874692867,-7001.38,0.00018722,2]
[370073589,1751874692876,-460.0,0.00018722,2]
[370073590,1751874692886,-460.0,0.00018722,2]
[370073591,1751874692895,-802.05,0.00018722,2]
[370073592,1751874692905,-460.0,0.00018722,2]
[370073593,1751874692915,-460.0,0.00018722,2]
[370073594,1751874692925,-2963.68,0.00018722,2]
[370073595,1751874692934,-460.0,0.00018722,2]
[370073596,1751874692943,-960.04,0.00018722,2]
[370073597,1751874692953,-515.59,0.00018722,2]
[370073598,1751874692963,-394.30939433,0.00018722,2]
[370073599,1751874692973,-1138.73,0.00018722,2]
[370073600,1751874692982,-460.0,0.00018722,2]
[370073601,1751874692992,-460.0,0.00018722,2]
[370073602,1751874693001,-460.0,0.00018723,2]
[370073603,1751874693011,-236.53928258,0.00018723,2]
[370073604,1751874693021,-460.0,0.00018723,2]
[370073605,1751874693030,-460.0,0.00018723,2]
[370073606,1751874693040,-460.0,0.00018723,2]
[370073607,1751874693051,-460.0,0.00018723,2]
[370073608,1751874693061,-460.0,0.00018723,2]
[370073609,1751874693071,-460.0,0.00018723,2]
[370073610,1751874693081,-460.0,0.00018723,2]
[370073611,1751874693091,-460.0,0.00018723,2]
[370073612,1751874693100,-460.0,0.00018723,2]
[370073613,1751874693110,-460.0,0.00018723,2]
[370073614,1751874693120,-460.0,0.00018723,2]
[370073615,1751874693129,-460.0,0.00018723,2]
[370073616,1751874693138,-460.0,0.00018723,2]
[370073617,1751874693147,-460.0,0.00018723,2]
[370073618,1751874693157,-460.0,0.00018723,2]
[370073619,1751874693166,-519.85292996,0.00018723,2]
[370073620,1751874693176,-460.0,0.00018723,2]
[370073621,1751874693185,-460.0,0.00018723,2]
[370073622,1751874693194,-460.0,0.00018723,2]
[370073623,1751874693206,-460.0,0.00018723,2]
[370073624,1751874693217,-460.0,0.00018723,2]
[370073625,1751874693226,-460.0,0.00018723,2]
[370073626,1751874693235,-460.0,0.00018723,2]
[370073627,1751874693245,-460.0,0.00018723,2]
[370073628,1751874693255,-460.0,0.00018723,2]
[370073629,1751874693264,-460.0,0.00018723,2]
[370073630,1751874693274,-460.0,0.00018723,2]
[370073631,1751874693283,-460.0,0.00018723,2]
[370073632,1751874693294,-460.0,0.00018723,2]
[370073633,1751874693305,-460.0,0.00018723,2]
[370073634,1751874693314,-460.0,0.00018723,2]
[370073635,1751874693324,-460.0,0.00018723,2]
[370073636,1751874693334,-460.0,0.00018723,2]
[370073637,1751874693343,-460.0,0.00018723,2]
[370073638,1751874693352,-460.0,0.00018723,2]
[370073639,1751874693362,-426.16186318,0.00018723,2]
[370073640,1751874693372,-460.0,0.00018723,2]
[370073641,1751874693381,-460.0,0.00018723,2]
[370073642,1751874693391,-800.94,0.00018723,2]
[370073643,1751874693401,-460.0,0.00018723,2]
[370073644,1751874693410,-1010.27,0.00018723,2]
[370073645,1751874693420,-460.0,0.00018724,2]
[370073646,1751874693429,-460.0,0.00018724,2]
[370073647,1751874693439,-460.0,0.00018724,2]
[370073648,1751874693449,-172.28124157,0.00018724,2]
[370073649,1751874693458,-460.0,0.00018724,2]
[370073650,1751874693468,-460.0,0.00018724,2]
[370073651,1751874693477,-558.89141664,0.00018724,2]
[370073652,1751874693486,-460.0,0.00018724,2]
[370073653,1751874693496,-545.09,0.00018724,2]
[370073654,1751874693505,-460.0,0.00018724,2]
[370073655,1751874693514,-326.43467925,0.00018724,2]
[370073656,1751874693523,-460.0,0.00018724,2]
[370073657,1751874693533,-460.0,0.00018724,2]
[370073658,1751874693542,-460.0,0.00018724,2]
[370073659,1751874693552,-460.0,0.00018724,2]
[370073660,1751874693561,-460.0,0.00018724,2]
[370073661,1751874693571,-460.0,0.00018724,2]
[370073662,1751874693580,-595.03,0.00018724,2]
[370073663,1751874693590,-460.0,0.00018724,2]
[370073664,1751874693600,-460.0,0.00018724,2]
[370073665,1751874693609,-460.0,0.00018724,2]
[370073666,1751874693619,-460.0,0.00018724,2]
[370073667,1751874693629,-460.0,0.00018724,2]
[370073668,1751874693639,-853.89,0.00018724,2]
[370073669,1751874693649,-460.0,0.00018724,2]
[370073670,1751874693658,-653.05,0.00018724,2]
[370073671,1751874693668,-1467.27,0.00018724,2]
[370073672,1751874693677,-460.0,0.00018724,2]
[370073673,1751874693687,-460.0,0.00018724,2]
[370073674,1751874693696,-460.0,0.00018724,2]
[370073675,1751874693705,-460.0,0.00018724,2]
[370073676,1751874693715,-460.0,0.00018724,2]
[370073677,1751874693725,-460.0,0.00018724,2]
[370073678,1751874693735,-460.0,0.00018724,2]
[370073679,1751874693744,-347.24402422,0.00018724,2]
[370073680,1751874693754,-460.0,0.00018724,2]
[370073681,1751874693763,-558.67,0.00018724,2]
[370073682,1751874693773,-1277.64,0.00018724,2]
[370073683,1751874693783,-369.32777085,0.00018724,2]
[370073684,1751874693793,-875.52,0.00018724,2]
[370073685,1751874693802,-460.0,0.00018724,2]
[370073686,1751874693811,-1859.47,0.00018724,2]
[370073687,1751874693821,-460.0,0.00018724,2]
[370073688,1751874693830,-460.0,0.00018724,2]
[370073689,1751874693840,-667.38,0.00018724,2]
[370073690,1751874693850,-460.0,0.00018724,2]
[370073691,1751874693859,-462.72,0.00018724,2]
[370073692,1751874693869,-460.0,0.00018724,2]
[370073693,1751874693878,-151.0,0.00018724,2]
[370073694,1751874693888,-460.0,0.00018724,2]
[370073695,1751874693897,-321.777629,0.00018724,2]
[370073696,1751874693907,-321.777629,0.00018724,2]
[370073697,1751874693917,-460.0,0.00018724,2]
[370073698,1751874693926,-460.0,0.00018724,2]
[370073699,1751874693936,-451.68707343,0.00018725,2]
[370073700,1751874693945,-460.0,0.00018725,2]
[370073701,1751874693954,-460.0,0.00018725,2]
[370073702,1751874693964,-476.25,0.00018725,2]
[370073703,1751874693973,-460.0,0.00018725,2]
[370073704,1751874693982,-460.0,0.00018725,2]
[370073705,1751874693992,-460.0,0.00018725,2]
[370073706,1751874694001,-443.39861968,0.00018725,2]
[370073707,1751874694011,-514.3,0.00018725,2]
[370073708,1751874694020,-460.0,0.00018725,2]
[370073709,1751874694029,-460.0,0.00018725,2]
[370073710,1751874694039,-460.0,0.00018725,2]
[370073711,1751874694048,-151.0,0.00018725,2]
[370073712,1751874694057,-160.4115,0.00018725,2]
[370073713,1751874694067,-160.4115,0.00018725,2]
[370073714,1751874694076,-262.761526,0.00018725,2]
[370073715,1751874694085,-262.761526,0.00018725,2]
[370073716,1751874694094,-545.583479,0.00018725,2]
[370073717,1751874694103,-170.092497,0.00018725,2]
[370073718,1751874694112,-170.092497,0.00018725,2]
[370073719,1751874694122,-487.81,0.00018725,2]
[370073720,1751874694131,-1189.7,0.00018725,2]
[370073721,1751874694141,-460.0,0.00018725,2]
[370073722,1751874694150,-151.0,0.00018725,2]
[370073723,1751874694159,-1405.47,0.00018725,2]
[370073724,1751874694169,-470.64,0.00018725,2]
[370073725,1751874694178,-460.0,0.00018725,2]
[370073726,1751874694187,-460.0,0.00018725,2]
[370073727,1751874694197,-1319.88,0.00018725,2]
[370073728,1751874694207,-151.0,0.00018725,2]
[370073729,1751874694219,-760.73,0.00018725,2]
[370073730,1751874694228,-159.25166,0.00018725,2]
[370073731,1751874694237,-460.0,0.00018725,2]
[370073732,1751874694247,-159.25166,0.00018725,2]
[370073733,1751874694256,-1793.32,0.00018725,2]
[370073734,1751874694266,-460.0,0.00018725,2]
[370073735,1751874694275,-460.0,0.00018725,2]
[370073736,1751874694285,-460.0,0.00018725,2]
[370073737,1751874694295,-801.02,0.00018725,2]
[370073738,1751874694305,-484.77,0.00018725,2]
[370073739,1751874694315,-460.0,0.00018725,2]
[370073740,1751874694325,-485.52,0.00018725,2]
[370073741,1751874694335,-9292.4,0.00018725,2]
[370073742,1751874694344,-752.99,0.00018725,2]
[370073743,1751874694353,-2399.68,0.00018725,2]
[370073744,1751874694363,-460.0,0.00018725,2]
[370073745,1751874694372,-447.145426,0.00018725,2]
[370073746,1751874694547,-1940.76,0.00018725,2]
[370073747,1751874694558,-447.145426,0.00018725,2]
[370073748,1751874694567,-460.0,0.00018725,2]
[370073749,1751874694577,-460.0,0.00018725,2]
[370073750,1751874694586,-1002.05,0.00018725,2]
[370073751,1751874694596,-1775.53,0.00018725,2]
[370073752,1751874694606,-833.33,0.00018726,2]
[370073753,1751874694615,-460.0,0.00018726,2]
[370073754,1751874694624,-460.0,0.00018726,2]
[370073755,1751874694635,-460.0,0.00018726,2]
[370073756,1751874694644,-460.0,0.00018726,2]
[370073757,1751874694654,-479.16,0.00018726,2]
[370073758,1751874694664,-460.0,0.00018726,2]
[370073759,1751874694673,-460.0,0.00018726,2]
[370073760,1751874694683,-460.0,0.00018726,2]
[370073761,1751874694694,-460.0,0.00018726,2]
[370073762,1751874694704,-460.0,0.00018726,2]
[370073763,1751874694714,-460.0,0.00018726,2]
[370073764,1751874694724,-789.93,0.00018726,2]
[370073765,1751874694736,-460.0,0.00018726,2]
[370073766,1751874694746,-460.0,0.00018726,2]
[370073767,1751874694756,-460.0,0.00018726,2]
[370073768,1751874694766,-460.0,0.00018726,2]
[370073769,1751874694779,-460.0,0.00018726,2]
[370073770,1751874694789,-460.0,0.00018726,2]
[370073771,1751874694800,-460.0,0.00018726,2]
[370073772,1751874694810,-460.0,0.00018726,2]
[370073773,1751874694820,-460.0,0.00018726,2]
[370073774,1751874694830,-460.0,0.00018726,2]
[370073775,1751874694840,-460.0,0.00018726,2]
[370073776,1751874694850,-443.39826735,0.00018726,2]
[370073777,1751874694859,-402.76119151,0.00018726,2]
[370073778,1751874694871,-257.440728,0.00018726,2]
[370073779,1751874694882,-257.440728,0.00018726,2]
[370073780,1751874694893,-460.0,0.00018726,2]
[370073781,1751874694902,-466.97063672,0.00018726,2]
[370073782,1751874694912,-460.0,0.00018726,2]
[370073783,1751874694922,-460.0,0.00018726,2]
[370073784,1751874694932,-460.0,0.00018726,2]
[370073785,1751874694942,-460.0,0.00018726,2]
[370073786,1751874694952,-460.0,0.00018726,2]
[370073787,1751874694962,-460.0,0.00018726,2]
[370073788,1751874694972,-460.0,0.00018726,2]
[370073789,1751874694982,-460.0,0.00018726,2]
[370073790,1751874694992,-151.0,0.00018726,2]
[370073791,1751874695002,-460.0,0.00018726,2]
[370073792,1751874695012,-460.0,0.00018726,2]
[370073793,1751874695022,-460.0,0.00018726,2]
[370073794,1751874695032,-1358.8,0.00018726,2]
[370073795,1751874695042,-460.0,0.00018726,2]
[370073796,1751874695052,-467.41917721,0.00018726,2]
[370073797,1751874695062,-460.0,0.00018726,2]
[370073798,1751874695072,-460.0,0.00018726,2]
[370073799,1751874695083,-151.0,0.00018726,2]
[370073800,1751874695092,-639.905489,0.00018726,2]
[370073801,1751874695101,-460.0,0.00018726,2]
[370073802,1751874695111,-639.905489,0.00018726,2]
[370073803,1751874695122,-460.0,0.00018726,2]
[370073804,1751874695131,-474.49,0.00018726,2]
[370073805,1751874695141,-460.0,0.00018726,2]
[370073806,1751874695151,-460.0,0.00018726,2]
[370073807,1751874695161,-460.0,0.00018726,2]
[370073808,1751874695170,-1067.63,0.00018726,2]
[370073809,1751874695180,-484.4,0.00018726,2]
[370073810,1751874695190,-636.05,0.00018726,2]
[370073811,1751874695200,-460.0,0.00018726,2]
[370073812,1751874695219,-462.2303714,0.00018726,2]
[370073813,1751874695229,-3446.996744,0.00018726,2]
[370073814,1751874695239,-460.0,0.00018726,2]
[370073815,1751874695251,-3446.996744,0.00018726,2]
[370073816,1751874695261,-460.0,0.00018726,2]
[370073817,1751874695271,-460.0,0.00018726,2]
[370073818,1751874695281,-460.0,0.00018726,2]
[370073819,1751874695292,-460.0,0.00018726,2]
[370073820,1751874695303,-460.0,0.00018726,2]
[370073821,1751874695314,-460.0,0.00018726,2]
[370073822,1751874695324,-460.0,0.00018726,2]
[370073823,1751874695334,-460.0,0.00018726,2]
[370073824,1751874695344,-460.0,0.00018726,2]
[370073825,1751874695354,-460.0,0.00018726,2]
[370073826,1751874695363,-460.0,0.00018726,2]
[370073827,1751874695373,-460.0,0.00018726,2]
[370073828,1751874695382,-460.0,0.00018726,2]
[370073829,1751874695392,-460.0,0.00018726,2]
[370073830,1751874695402,-556.7680337,0.00018726,2]
[370073831,1751874695412,-460.0,0.00018726,2]
[370073832,1751874695422,-226.69643827,0.00018726,2]
[370073833,1751874695432,-460.0,0.00018726,2]
[370073834,1751874695442,-460.0,0.00018726,2]
[370073835,1751874695452,-460.0,0.00018726,2]
[370073836,1751874695462,-460.0,0.00018726,2]
[370073837,1751874695473,-460.0,0.00018726,2]
[370073838,1751874695484,-460.0,0.00018726,2]
[370073839,1751874695494,-460.0,0.00018726,2]
[370073840,1751874695505,-514.48513942,0.00018726,2]
[370073841,1751874695515,-460.0,0.00018726,2]
[370073842,1751874695526,-460.0,0.00018726,2]
[370073843,1751874695536,-463.44037268,0.00018726,2]
[370073844,1751874695546,-440.070746,0.00018726,2]
[370073845,1751874695557,-440.070746,0.00018726,2]
[370073846,1751874695567,-460.0,0.00018726,2]
[370073847,1751874695578,-460.0,0.00018726,2]
[370073848,1751874695587,-500.0,0.00018726,2]
[370073849,1751874695598,-1217.52,0.00018726,2]
[370073850,1751874695608,-460.0,0.00018726,2]
[370073851,1751874695619,-598.99,0.00018726,2]
[370073852,1751874695629,-460.0,0.00018726,2]
[370073853,1751874695639,-460.0,0.00018726,2]
[370073854,1751874695649,-460.0,0.00018726,2]
[370073855,1751874695659,-460.0,0.00018726,2]
[370073856,1751874695670,-460.0,0.00018726,2]
[370073857,1751874695679,-614.451764,0.00018726,2]
[370073858,1751874695689,-614.451764,0.00018726,2]
[370073859,1751874695698,-460.0,0.00018726,2]
[370073860,1751874695708,-463.11913185,0.00018726,2]
[370073861,1751874695718,-460.0,0.00018726,2]
[370073862,1751874695734,-460.0,0.00018726,2]
[370073863,1751874695745,-460.0,0.00018726,2]
[370073864,1751874695756,-460.44,0.00018726,2]
[370073865,1751874695766,-460.0,0.00018726,2]
[370073866,1751874695776,-460.0,0.00018726,2]
[370073867,1751874695786,-460.0,0.00018726,2]
[370073868,1751874695797,-500.0,0.00018726,2]
[370073869,1751874695807,-460.0,0.00018726,2]
[370073870,1751874695817,-151.0,0.00018726,2]
[370073871,1751874695828,-460.0,0.00018726,2]
[370073872,1751874695839,-460.0,0.00018726,2]
[370073873,1751874695848,-460.0,0.00018726,2]
[370073874,1751874695858,-460.0,0.00018726,2]
[370073875,1751874695868,-460.0,0.00018726,2]
[370073876,1751874695878,-460.0,0.00018726,2]
[370073877,1751874695888,-151.0,0.00018726,2]
[370073878,1751874695897,-819.948891,0.00018726,2]
[370073879,1751874695907,-819.948891,0.00018726,2]
[370073880,1751874695917,-568.83,0.00018726,2]
[370073881,1751874695927,-460.0,0.00018726,2]
[370073882,1751874695936,-460.0,0.00018726,2]
[370073883,1751874695946,-460.0,0.00018726,2]
[370073884,1751874695956,-460.0,0.00018726,2]
[370073885,1751874695966,-460.0,0.00018726,2]
[370073886,1751874695977,-1142.62,0.00018726,2]
[370073887,1751874695986,-460.0,0.00018726,2]
[370073888,1751874695996,-3875.46,0.00018726,2]
[370073889,1751874696006,-460.0,0.00018726,2]
[370073890,1751874696015,-460.0,0.00018726,2]
[370073891,1751874696025,-460.0,0.00018726,2]